fUSD/lending_fUSD_20260625
["ID","MTS","AMOUNT","RATE_DAILY","PERIOD"]
[426397437,1782346245000,-10000.0,0.00014817,2]
[426397436,1782346245000,-1200.0,0.000148,5]
[426397438,1782346245000,-25000.0,0.0001483,3]
[426397440,1782346245000,-25000.0,0.00014847,3]
[426397444,1782346245000,-231.58889,0.0001486,2]
[426397441,1782346245000,-231.58888,0.0001485,2]
[426397443,1782346245000,-25000.0,0.00014856,3]
[426397442,1782346245000,-231.58888,0.0001485,2]
[426397445,1782346245000,-200.0,0.00014861,2]
[426397382,1782346245000,-500.0,0.0001453,2]
[426397418,1782346245000,-2000.0,0.000147,2]
[426397419,1782346245000,-2000.0,0.000147,2]
[426397431,1782346245000,-2000.0,0.00014765,2]
[426397411,1782346245000,-2327.39,0.0001453,2]
[426397416,1782346245000,-150.0,0.0001466,2]
[426397388,1782346245000,-500.0,0.0001453,2]
[426397387,1782346245000,-500.0,0.0001453,2]
[426397386,1782346245000,-151.0,0.0001453,2]
[426397392,1782346245000,-500.0,0.0001453,2]
[426397396,1782346245000,-1857.37,0.0001453,2]
[426397385,1782346245000,-17050.49360432,0.0001453,2]
[426397397,1782346245000,-1857.37,0.0001453,2]
[426397393,1782346245000,-213.23061477,0.0001453,2]
[426397395,1782346245000,-1857.37,0.0001453,2]
[426397402,1782346245000,-1857.37,0.0001453,2]
[426397401,1782346245000,-1857.37,0.0001453,2]
[426397400,1782346245000,-1857.37,0.0001453,2]
[426397394,1782346245000,-1857.37,0.0001453,2]
[426397403,1782346245000,-1857.38315319,0.0001453,2]
[426397413,1782346245000,-2327.43536514,0.0001453,2]
[426397398,1782346245000,-1857.37,0.0001453,2]
[426397409,1782346245000,-2327.39,0.0001453,2]
[426397410,1782346245000,-2327.39,0.0001453,2]
[426397412,1782346245000,-2327.39,0.0001453,2]
[426397414,1782346245000,-2000.0,0.000146,2]
[426397407,1782346245000,-2327.39,0.0001453,2]
[426397406,1782346245000,-2327.39,0.0001453,2]
[426397404,1782346245000,-2327.39,0.0001453,2]
[426397415,1782346245000,-1200.0,0.000146,5]
[426397405,1782346245000,-2327.39,0.0001453,2]
[426397399,1782346245000,-1857.37,0.0001453,2]
[426397408,1782346245000,-2327.39,0.0001453,2]
[426397470,1782346246000,-208.01435596,0.000149,2]
[426397467,1782346246000,-1200.0,0.000149,5]
[426397465,1782346246000,-25000.0,0.000149,3]
[426397473,1782346246000,-490.30899527,0.00014999,2]
[426397466,1782346246000,-463.33385624,0.000149,2]
[426397472,1782346246000,-500.0,0.00014985,2]
[426397468,1782346246000,-1913.59841496,0.000149,2]
[426397480,1782346246000,-500.0,0.00014999,2]
[426397471,1782346246000,-10082.10195039,0.000149,3]
[426397474,1782346246000,-500.0,0.00014999,2]
[426397476,1782346246000,-500.0,0.00014999,2]
[426397475,1782346246000,-500.0,0.00014999,2]
[426397477,1782346246000,-500.0,0.00014999,2]
[426397482,1782346246000,-500.0,0.00014999,2]
[426397479,1782346246000,-500.0,0.00014999,2]
[426397469,1782346246000,-216.55839649,0.000149,2]
[426397463,1782346246000,-25000.0,0.000149,3]
[426397449,1782346246000,-500.0,0.00014869,2]
[426397459,1782346246000,-25000.0,0.00014891,3]
[426397478,1782346246000,-500.0,0.00014999,2]
[426397450,1782346246000,-500.0,0.00014869,2]
[426397447,1782346246000,-500.0,0.00014869,2]
[426397448,1782346246000,-500.0,0.00014869,2]
[426397446,1782346246000,-25000.0,0.00014865,3]
[426397452,1782346246000,-500.0,0.00014869,2]
[426397451,1782346246000,-562.9,0.00014869,2]
[426397454,1782346246000,-5800.0,0.00014874,2]
[426397453,1782346246000,-25000.0,0.00014874,3]
[426397455,1782346246000,-200.0,0.00014879,2]
[426397456,1782346246000,-25000.0,0.00014882,3]
[426397461,1782346246000,-9271.0,0.00014898,5]
[426397458,1782346246000,-459.0,0.00014886,2]
[426397460,1782346246000,-5800.0,0.00014891,2]
[426397457,1782346246000,-5800.0,0.00014883,2]
[426397464,1782346246000,-5800.0,0.000149,2]
[426397481,1782346246000,-281.34,0.00014999,2]
[426397462,1782346246000,-7413.0,0.00014898,5]
[426397483,1782346246000,-500.0,0.00014999,2]
[426397504,1782346246000,-562.9,0.00014999,2]
[426397507,1782346246000,-562.9,0.00014999,2]
[426397510,1782346246000,-500.0,0.00014999,2]
[426397508,1782346246000,-562.9,0.00014999,2]
[426397511,1782346246000,-326.08,0.00014999,2]
[426397509,1782346246000,-562.9,0.00014999,2]
[426397514,1782346246000,-6344793.78290652,0.00015,2]
[426397502,1782346246000,-562.9,0.00014999,2]
[426397513,1782346246000,-300.0,0.00014999,2]
[426397515,1782346246000,-796.01445531,0.00015,2]
[426397517,1782346246000,-151.0,0.00013458,2]
[426397516,1782346246000,-151.0,0.00011014,2]
[426397519,1782346246000,-2534.60236263,0.00015,2]
[426397520,1782346246000,-4070.05477351,0.00015,2]
[426397518,1782346246000,-1163.49182445,0.00015,2]
[426397486,1782346246000,-500.0,0.00014999,2]
[426397512,1782346246000,-300.0,0.00014999,2]
[426397500,1782346246000,-562.9,0.00014999,2]
[426397506,1782346246000,-562.9,0.00014999,2]
[426397501,1782346246000,-562.9,0.00014999,2]
[426397484,1782346246000,-500.0,0.00014999,2]
[426397485,1782346246000,-500.0,0.00014999,2]
[426397488,1782346246000,-500.0,0.00014999,2]
[426397496,1782346246000,-562.9,0.00014999,2]
[426397490,1782346246000,-500.0,0.00014999,2]
[426397494,1782346246000,-500.0,0.00014999,2]
[426397505,1782346246000,-562.9,0.00014999,2]
[426397491,1782346246000,-500.0,0.00014999,2]
[426397497,1782346246000,-562.9,0.00014999,2]
[426397492,1782346246000,-500.0,0.00014999,2]
[426397489,1782346246000,-500.0,0.00014999,2]
[426397498,1782346246000,-562.9,0.00014999,2]
[426397487,1782346246000,-500.0,0.00014999,2]
[426397495,1782346246000,-422.03376906,0.00014999,2]
[426397499,1782346246000,-562.9,0.00014999,2]
[426397503,1782346246000,-562.9,0.00014999,2]
[426397493,1782346246000,-500.0,0.00014999,2]
[426397526,1782346247000,-4962.82823641,0.00015,2]
[426397521,1782346247000,-374.25936453,0.00015,2]
[426397523,1782346247000,-885.53351785,0.00015,2]
[426397522,1782346247000,-707.40206348,0.00015,2]
[426397528,1782346247000,-1984.58531792,0.00015,2]
[426397524,1782346247000,-151.0,0.00011014,2]
[426397525,1782346247000,-317.0,0.00012384,2]
[426397529,1782346247000,-347.22227381,0.00015,2]
[426397536,1782346247000,-1116.0,0.00015,2]
[426397534,1782346247000,-5667.68307199,0.00015,2]
[426397535,1782346247000,-2253.84616683,0.00015,2]
[426397530,1782346247000,-652.77772619,0.00015,2]
[426397532,1782346247000,-151.0,0.00011014,2]
[426397537,1782346296000,3348.57,0.00030958,30]
[426397547,1782346867000,257.579867,7.945e-05,2]
[426397550,1782346921000,183.32287261,0.00030411,60]
[426397551,1782346968000,180.0,0.00028725,30]
[426397552,1782346970000,180.0,0.00029725,30]
[426397553,1782346971000,180.0,0.00030725,30]
[426397554,1782347010000,235.0,0.00028726,30]
[426397555,1782347012000,235.0,0.00029726,30]
[426397556,1782347013000,235.0,0.00030726,30]
[426397557,1782347095000,1214.80860802,0.00031506,30]
[426397558,1782347122000,152.0,0.00028726,30]
[426397559,1782347123000,152.0,0.00029726,30]
[426397560,1782347125000,152.0,0.00030726,30]
[426397562,1782347203000,172.0,0.00028726,30]
[426397563,1782347204000,172.0,0.00029726,30]
[426397564,1782347206000,172.0,0.00030726,30]
[426397566,1782347224000,162.72752717,0.00030137,30]
[426397672,1782347431000,-500.0,0.00012091,2]
[426397669,1782347431000,-5392.53,0.0001209,2]
[426397675,1782347431000,-9999.99,0.00012091,2]
[426397679,1782347431000,-9999.99,0.00012091,2]
[426397674,1782347431000,-379.8600912,0.00012091,2]
[426397683,1782347431000,-500.0,0.00012091,2]
[426397671,1782347431000,-500.0,0.00012091,2]
[426397677,1782347431000,-299.99,0.00012091,2]
[426397680,1782347431000,-500.0,0.00012091,2]
[426397670,1782347431000,-500.0,0.00012091,2]
[426397673,1782347431000,-500.0,0.00012091,2]
[426397668,1782347431000,-150.0,0.0001209,2]
[426397658,1782347431000,-150.0,0.00011418,2]
[426397667,1782347431000,-201.02252561,0.00011991,2]
[426397665,1782347431000,-166.66,0.00011951,2]
[426397663,1782347431000,-214.20736825,0.00011651,2]
[426397664,1782347431000,-166.66,0.00011704,2]
[426397661,1782347431000,-587.33391033,0.00011463,2]
[426397662,1782347431000,-2.21587982,0.00011651,2]
[426397660,1782347431000,-275.65157898,0.00011463,2]
[426397657,1782347431000,-199.35,0.00011383,2]
[426397656,1782347431000,-742.03818604,0.00011374,2]
[426397659,1782347431000,-989.43451069,0.00011463,2]
[426397666,1782347431000,-199.35,0.00011952,2]
[426397687,1782347431000,-151.0,0.00012092,2]
[426397732,1782347431000,-310.0,0.00012093,2]
[426397685,1782347431000,-516.67739789,0.00012091,2]
[426397730,1782347431000,-152.0,0.00012093,2]
[426397731,1782347431000,-312.0,0.00012093,2]
[426397688,1782347431000,-309.0,0.00012092,2]
[426397727,1782347431000,-150.0,0.00012093,2]
[426397725,1782347431000,-314.0,0.00012093,2]
[426397728,1782347431000,-310.0,0.00012093,2]
[426397723,1782347431000,-320.0,0.00012093,2]
[426397726,1782347431000,-317.0,0.00012093,2]
[426397719,1782347431000,-311.0,0.00012093,2]
[426397720,1782347431000,-318.0,0.00012093,2]
[426397721,1782347431000,-151.0,0.00012093,2]
[426397729,1782347431000,-320.0,0.00012093,2]
[426397713,1782347431000,-311.0,0.00012093,2]
[426397717,1782347431000,-151.0,0.00012093,2]
[426397690,1782347431000,-309.0,0.00012092,2]
[426397692,1782347431000,-319.0,0.00012092,2]
[426397704,1782347431000,-310.0,0.00012092,2]
[426397707,1782347431000,-318.0,0.00012092,2]
[426397700,1782347431000,-152.0,0.00012092,2]
[426397697,1782347431000,-309.0,0.00012092,2]
[426397709,1782347431000,-313.0,0.00012092,2]
[426397711,1782347431000,-310.0,0.00012093,2]
[426397715,1782347431000,-318.0,0.00012093,2]
[426397694,1782347431000,-152.0,0.00012092,2]
[426397743,1782347432000,-314.0,0.00012093,2]
[426397750,1782347432000,-194.04,0.00012329,2]
[426397745,1782347432000,-500.0,0.00012093,2]
[426397747,1782347432000,-166.66,0.00012197,2]
[426397748,1782347432000,-1947.83,0.0001221,2]
[426397746,1782347432000,-2000.0,0.00012174,2]
[426397741,1782347432000,-312.0,0.00012093,2]
[426397744,1782347432000,-152.0,0.00012093,2]
[426397736,1782347432000,-309.0,0.00012093,2]
[426397740,1782347432000,-150.0,0.00012093,2]
[426397739,1782347432000,-312.0,0.00012093,2]
[426397738,1782347432000,-310.0,0.00012093,2]
[426397737,1782347432000,-151.0,0.00012093,2]
[426397734,1782347432000,-150.0,0.00012093,2]
[426397735,1782347432000,-320.0,0.00012093,2]
[426397733,1782347432000,-317.0,0.00012093,2]
[426397752,1782347432000,-155.07,0.00012372,2]
[426397742,1782347432000,-318.0,0.00012093,2]
[426397753,1782347432000,-166.66,0.00012444,2]
[426397749,1782347432000,-200.0,0.00012212,2]
[426397755,1782347432000,-250.0,0.00012511,2]
[426397751,1782347432000,-500.0,0.00012367,2]
[426397770,1782347432000,-1429.41657676,0.00012793,2]
[426397771,1782347432000,-3485.75315601,0.00012793,2]
[426397767,1782347432000,-4186.6412,0.00012793,2]
[426397768,1782347432000,-5667.3401,0.00012793,2]
[426397766,1782347432000,-582.82201974,0.00012792,2]
[426397765,1782347432000,-171.57011129,0.00012792,2]
[426397762,1782347432000,-305.235,0.00012693,2]
[426397763,1782347432000,-909.05763182,0.00012693,2]
[426397769,1782347432000,-261154.3425059,0.00012793,2]
[426397761,1782347432000,-34517.26154806,0.00012693,2]
[426397759,1782347432000,-474.85743335,0.00012574,2]
[426397760,1782347432000,-166.66,0.0001269,2]
[426397758,1782347432000,-158.28581112,0.00012574,2]
[426397772,1782347432000,-293.48156329,0.00012793,2]
[426397757,1782347432000,-278.04,0.00012548,2]
[426397756,1782347432000,-199.35,0.00012521,2]
[426397754,1782347432000,-250.0,0.00012511,2]
[426397764,1782347432000,-2894.18668316,0.00012693,2]
[426397799,1782347437000,-9559.05,0.00012893,2]
[426397801,1782347437000,-152.0,0.00012893,2]
[426397796,1782347437000,-22175.58,0.00012893,2]
[426397795,1782347437000,-150.99,0.00012893,2]
[426397793,1782347437000,-403.78858339,0.00012892,2]
[426397794,1782347437000,-192.66946371,0.00012892,2]
[426397790,1782347437000,-171.66558417,0.00012793,2]
[426397791,1782347437000,-633.15,0.00012863,2]
[426397792,1782347437000,-281.11464608,0.00012892,2]
[426397787,1782347437000,-1233637.00619804,0.00012793,2]
[426397788,1782347437000,-6830.8209,0.00012793,2]
[426397803,1782347437000,-152.0,0.00012893,2]
[426397789,1782347437000,-1158.6829,0.00012793,2]
[426397798,1782347437000,-5695.57,0.00012893,2]
[426397797,1782347437000,-7676.91,0.00012893,2]
[426397802,1782347437000,-152.0,0.00012893,2]
[426397800,1782347437000,-152.0,0.00012893,2]
[426397816,1782347437000,-150.0,0.00013389,2]
[426397812,1782347437000,-155.07,0.00013145,2]
[426397814,1782347437000,-34517.26154803,0.00013183,2]
[426397815,1782347437000,-2894.18668312,0.00013324,2]
[426397813,1782347437000,-255.0,0.00013178,2]
[426397811,1782347437000,-2894.18668312,0.00013008,2]
[426397817,1782347437000,-150.0,0.00013389,2]
[426397808,1782347437000,-659.68,0.00012922,2]
[426397807,1782347437000,-280.0,0.00012893,2]
[426397809,1782347437000,-166.66,0.00012936,2]
[426397806,1782347437000,-152.0,0.00012893,2]
[426397805,1782347437000,-152.0,0.00012893,2]
[426397810,1782347437000,-34517.26154803,0.00012938,2]
[426397804,1782347437000,-292.0,0.00012893,2]
[426397871,1782347438000,-150.0,0.00013654,2]
[426397868,1782347438000,-150.0,0.00013637,2]
[426397869,1782347438000,-2894.18668312,0.00013639,2]
[426397860,1782347438000,-2500.0,0.00013599,2]
[426397867,1782347438000,-150.0,0.00013632,2]
[426397863,1782347438000,-150.0,0.00013602,2]
[426397865,1782347438000,-150.0,0.00013618,2]
[426397855,1782347438000,-150.0,0.00013583,2]
[426397864,1782347438000,-1245.84,0.00013608,2]
[426397852,1782347438000,-150.0,0.00013571,2]
[426397870,1782347438000,-150.0,0.00013648,2]
[426397858,1782347438000,-150.0,0.00013587,2]
[426397866,1782347438000,-150.0,0.0001362,2]
[426397873,1782347438000,-150.0,0.00013668,2]
[426397879,1782347438000,-584.4,0.00013698,2]
[426397875,1782347438000,-150.0,0.00013675,2]
[426397876,1782347438000,-150.0,0.00013687,2]
[426397874,1782347438000,-34517.26154803,0.00013674,2]
[426397880,1782347438000,-500.0,0.00013698,2]
[426397877,1782347438000,-420.0,0.0001369,2]
[426397878,1782347438000,-150.0,0.00013693,2]
[426397881,1782347438000,-500.0,0.00013698,2]
[426397882,1782347438000,-500.0,0.00013698,2]
[426397883,1782347438000,-551.62922069,0.00013698,2]
[426397892,1782347438000,-29767.09,0.00013699,2]
[426397888,1782347438000,-178.04,0.00013699,2]
[426397890,1782347438000,-712.16,0.00013699,2]
[426397862,1782347438000,-1700.0,0.000136,4]
[426397872,1782347438000,-150.0,0.00013662,2]
[426397854,1782347438000,-150.0,0.00013575,2]
[426397824,1782347438000,-150.0,0.00013389,2]
[426397848,1782347438000,-150.0,0.00013554,2]
[426397819,1782347438000,-150.0,0.00013389,2]
[426397818,1782347438000,-150.0,0.00013389,2]
[426397820,1782347438000,-150.0,0.00013389,2]
[426397822,1782347438000,-150.0,0.00013389,2]
[426397821,1782347438000,-150.0,0.00013389,2]
[426397887,1782347438000,-213.64,0.00013699,2]
[426397823,1782347438000,-150.0,0.00013389,2]
[426397825,1782347438000,-150.0,0.00013389,2]
[426397830,1782347438000,-150.0,0.0001345,2]
[426397833,1782347438000,-150.0,0.0001348,2]
[426397831,1782347438000,-150.0,0.00013454,2]
[426397827,1782347438000,-150.0,0.00013422,2]
[426397828,1782347438000,-34517.26154803,0.00013429,2]
[426397850,1782347438000,-150.0,0.00013561,2]
[426397826,1782347438000,-150.0,0.00013419,2]
[426397829,1782347438000,-150.0,0.00013446,2]
[426397835,1782347438000,-150.0,0.00013488,2]
[426397834,1782347438000,-150.0,0.00013482,2]
[426397837,1782347438000,-180.16152265,0.000135,2]
[426397836,1782347438000,-800.0,0.000135,4]
[426397839,1782347438000,-150.0,0.0001351,2]
[426397838,1782347438000,-150.0,0.00013503,2]
[426397840,1782347438000,-150.0,0.00013513,2]
[426397842,1782347438000,-150.0,0.00013521,2]
[426397841,1782347438000,-150.0,0.00013518,2]
[426397843,1782347438000,-150.0,0.00013541,2]
[426397844,1782347438000,-474.85743335,0.00013544,2]
[426397845,1782347438000,-150.0,0.00013554,2]
[426397832,1782347438000,-150.0,0.00013455,2]
[426397889,1782347438000,-178.04,0.00013699,2]
[426397886,1782347438000,-200.0,0.00013699,2]
[426397884,1782347438000,-723.55,0.00013699,2]
[426397926,1782347438000,-150.0,0.00013885,2]
[426397929,1782347438000,-150.0,0.00013905,2]
[426397928,1782347438000,-150.0,0.00013904,2]
[426397933,1782347438000,-520.11,0.00013906,2]
[426397927,1782347438000,-4400.0,0.000139,5]
[426397930,1782347438000,-520.11,0.00013906,2]
[426397932,1782347438000,-520.11,0.00013906,2]
[426397931,1782347438000,-520.11,0.00013906,2]
[426397934,1782347438000,-520.11,0.00013906,2]
[426397936,1782347438000,-520.11,0.00013906,2]
[426397935,1782347438000,-520.11,0.00013906,2]
[426397942,1782347438000,-500.0,0.00013906,2]
[426397939,1782347438000,-520.11,0.00013906,2]
[426397938,1782347438000,-520.11,0.00013906,2]
[426397937,1782347438000,-520.11,0.00013906,2]
[426397941,1782347438000,-600.58062303,0.00013906,2]
[426397943,1782347438000,-500.0,0.00013906,2]
[426397940,1782347438000,-500.0,0.00013906,2]
[426397945,1782347438000,-500.0,0.00013906,2]
[426397944,1782347438000,-500.0,0.00013906,2]
[426397946,1782347438000,-500.0,0.00013906,2]
[426397947,1782347438000,-500.0,0.00013906,2]
[426397948,1782347438000,-156.09,0.00013906,2]
[426397951,1782347438000,-500.0,0.00013906,2]
[426397952,1782347438000,-500.0,0.00013906,2]
[426397949,1782347438000,-500.0,0.00013906,2]
[426397950,1782347438000,-500.0,0.00013906,2]
[426397893,1782347438000,-2600.0,0.000137,5]
[426397954,1782347438000,-317.76731396,0.00013906,2]
[426397925,1782347438000,-150.0,0.00013885,2]
[426397924,1782347438000,-150.0,0.00013885,2]
[426397953,1782347438000,-500.0,0.00013906,2]
[426397921,1782347438000,-150.0,0.00013852,2]
[426397894,1782347438000,-942.82140432,0.00013704,2]
[426397885,1782347438000,-2500.0,0.00013699,2]
[426397896,1782347438000,-150.0,0.0001372,2]
[426397895,1782347438000,-150.0,0.00013712,2]
[426397898,1782347438000,-150.0,0.00013723,2]
[426397897,1782347438000,-150.0,0.0001372,2]
[426397902,1782347438000,-150.0,0.00013753,2]
[426397899,1782347438000,-500.0,0.00013732,2]
[426397923,1782347438000,-150.0,0.00013875,2]
[426397900,1782347438000,-150.0,0.00013732,2]
[426397904,1782347438000,-315.0,0.00013756,2]
[426397901,1782347438000,-150.0,0.00013753,2]
[426397905,1782347438000,-150.0,0.00013761,2]
[426397907,1782347438000,-150.0,0.00013777,2]
[426397903,1782347438000,-319.0,0.00013756,2]
[426397909,1782347438000,-150.0,0.00013786,2]
[426397922,1782347438000,-150.0,0.00013854,2]
[426397906,1782347438000,-150.0,0.00013761,2]
[426397915,1782347438000,-261.49644682,0.00013808,2]
[426397914,1782347438000,-24493.01368495,0.00013807,2]
[426397918,1782347438000,-150.0,0.00013842,2]
[426397919,1782347438000,-150.0,0.00013844,2]
[426397916,1782347438000,-150.0,0.00013814,2]
[426397917,1782347438000,-150.0,0.00013819,2]
[426397911,1782347438000,-150.0,0.0001379,2]
[426397913,1782347438000,-3500.0,0.000138,5]
[426397912,1782347438000,-909.0576318,0.00013797,2]
[426397910,1782347438000,-158.28581112,0.00013787,2]
[426397920,1782347438000,-150.0,0.00013847,2]
[426397908,1782347438000,-150.0,0.00013784,2]
[426397998,1782347439000,-500.0,0.00013906,2]
[426397997,1782347439000,-500.0,0.00013906,2]
[426397996,1782347439000,-500.0,0.00013906,2]
[426397991,1782347439000,-500.0,0.00013906,2]
[426397993,1782347439000,-500.0,0.00013906,2]
[426397985,1782347439000,-500.0,0.00013906,2]
[426397990,1782347439000,-500.0,0.00013906,2]
[426397989,1782347439000,-500.0,0.00013906,2]
[426397987,1782347439000,-500.0,0.00013906,2]
[426397988,1782347439000,-500.0,0.00013906,2]
[426397994,1782347439000,-500.0,0.00013906,2]
[426397992,1782347439000,-500.0,0.00013906,2]
[426398007,1782347439000,-500.0,0.00013906,2]
[426398022,1782347439000,-500.0,0.00013906,2]
[426398008,1782347439000,-504.07105771,0.00013906,2]
[426397999,1782347439000,-500.0,0.00013906,2]
[426398002,1782347439000,-500.0,0.00013906,2]
[426398005,1782347439000,-500.0,0.00013906,2]
[426398006,1782347439000,-500.0,0.00013906,2]
[426398003,1782347439000,-500.0,0.00013906,2]
[426398001,1782347439000,-500.0,0.00013906,2]
[426398004,1782347439000,-500.0,0.00013906,2]
[426398009,1782347439000,-500.0,0.00013906,2]
[426398020,1782347439000,-500.0,0.00013906,2]
[426398012,1782347439000,-500.0,0.00013906,2]
[426398021,1782347439000,-500.0,0.00013906,2]
[426397995,1782347439000,-500.0,0.00013906,2]
[426398011,1782347439000,-518.89469315,0.00013906,2]
[426398000,1782347439000,-500.0,0.00013906,2]
[426397986,1782347439000,-500.0,0.00013906,2]
[426397966,1782347439000,-500.0,0.00013906,2]
[426397982,1782347439000,-500.0,0.00013906,2]
[426398016,1782347439000,-500.0,0.00013906,2]
[426397955,1782347439000,-500.0,0.00013906,2]
[426397957,1782347439000,-500.0,0.00013906,2]
[426397958,1782347439000,-500.0,0.00013906,2]
[426397956,1782347439000,-500.0,0.00013906,2]
[426397959,1782347439000,-500.0,0.00013906,2]
[426397960,1782347439000,-500.0,0.00013906,2]
[426397962,1782347439000,-500.0,0.00013906,2]
[426397963,1782347439000,-500.0,0.00013906,2]
[426397968,1782347439000,-532.63504897,0.00013906,2]
[426397970,1782347439000,-500.0,0.00013906,2]
[426397967,1782347439000,-500.0,0.00013906,2]
[426397961,1782347439000,-500.0,0.00013906,2]
[426397984,1782347439000,-500.0,0.00013906,2]
[426397965,1782347439000,-500.0,0.00013906,2]
[426397969,1782347439000,-500.0,0.00013906,2]
[426397972,1782347439000,-500.0,0.00013906,2]
[426397971,1782347439000,-500.0,0.00013906,2]
[426397974,1782347439000,-500.0,0.00013906,2]
[426397973,1782347439000,-500.0,0.00013906,2]
[426397975,1782347439000,-500.0,0.00013906,2]
[426397976,1782347439000,-500.0,0.00013906,2]
[426397977,1782347439000,-500.0,0.00013906,2]
[426397979,1782347439000,-500.0,0.00013906,2]
[426397981,1782347439000,-500.0,0.00013906,2]
[426397983,1782347439000,-500.0,0.00013906,2]
[426397980,1782347439000,-500.0,0.00013906,2]
[426397978,1782347439000,-229.50990833,0.00013906,2]
[426397964,1782347439000,-500.0,0.00013906,2]
[426398014,1782347439000,-500.0,0.00013906,2]
[426398100,1782347439000,-500.0,0.00013906,2]
[426398013,1782347439000,-500.0,0.00013906,2]
[426398076,1782347439000,-500.0,0.00013906,2]
[426398078,1782347439000,-500.0,0.00013906,2]
[426398079,1782347439000,-500.0,0.00013906,2]
[426398080,1782347439000,-500.0,0.00013906,2]
[426398082,1782347439000,-500.0,0.00013906,2]
[426398081,1782347439000,-500.0,0.00013906,2]
[426398083,1782347439000,-500.0,0.00013906,2]
[426398084,1782347439000,-500.0,0.00013906,2]
[426398085,1782347439000,-500.0,0.00013906,2]
[426398086,1782347439000,-176.01433661,0.00013906,2]
[426398090,1782347439000,-500.0,0.00013906,2]
[426398088,1782347439000,-500.0,0.00013906,2]
[426398096,1782347439000,-500.0,0.00013906,2]
[426398077,1782347439000,-500.0,0.00013906,2]
[426398089,1782347439000,-500.0,0.00013906,2]
[426398095,1782347439000,-500.0,0.00013906,2]
[426398098,1782347439000,-500.0,0.00013906,2]
[426398092,1782347439000,-500.0,0.00013906,2]
[426398093,1782347439000,-500.0,0.00013906,2]
[426398094,1782347439000,-500.0,0.00013906,2]
[426398091,1782347439000,-500.0,0.00013906,2]
[426398099,1782347439000,-500.0,0.00013906,2]
[426398103,1782347439000,-500.0,0.00013906,2]
[426398101,1782347439000,-500.0,0.00013906,2]
[426398102,1782347439000,-500.0,0.00013906,2]
[426398104,1782347439000,-562.9,0.00013906,2]
[426398105,1782347439000,-562.9,0.00013906,2]
[426398015,1782347439000,-500.0,0.00013906,2]
[426398097,1782347439000,-500.0,0.00013906,2]
[426398075,1782347439000,-500.0,0.00013906,2]
[426398087,1782347439000,-500.0,0.00013906,2]
[426398073,1782347439000,-500.0,0.00013906,2]
[426398019,1782347439000,-500.0,0.00013906,2]
[426398074,1782347439000,-500.0,0.00013906,2]
[426398018,1782347439000,-500.0,0.00013906,2]
[426398017,1782347439000,-500.0,0.00013906,2]
[426398023,1782347439000,-500.0,0.00013906,2]
[426398024,1782347439000,-500.0,0.00013906,2]
[426398032,1782347439000,-500.0,0.00013906,2]
[426398026,1782347439000,-500.0,0.00013906,2]